bitfinex/quotes_BTCUSD_20220204
["timestamp","ask_amount","ask_price","bid_price","bid_amount"]
[1643984826502,0.09359003,37767.0,37765.0,0.04999999]
[1643984826699,0.09359003,37767.0,37763.0,0.2756379]
[1643984827101,0.09359003,37767.0,37763.0,0.19242895]
[1643984827301,0.09359003,37767.0,37765.0,0.066222]
[1643984829553,0.09359003,37767.0,37764.0,0.132436]
[1643984829754,0.046352,37766.0,37765.0,0.04999999]
[1643984830155,0.0169199,37769.0,37764.0,0.18243599]
[1643984830357,0.08899003,37770.0,37764.0,0.18243599]
[1643984830757,0.08899003,37770.0,37767.0,0.31183085]
[1643984830957,0.046352,37769.0,37768.0,0.18363287]
[1643984831162,0.08899003,37770.0,37767.0,0.31183085]
[1643984831457,0.10901244,37769.0,37766.0,0.066213]
[1643984831656,0.046352,37768.0,37760.0,0.04999999]
[1643984831858,0.45242853,37767.0,37758.0,0.04999999]
[1643984832056,0.45242853,37767.0,37759.0,0.19623539]
[1643984832057,0.18822677,37765.0,37759.0,0.19623539]
[1643984832357,0.00626845,37773.0,37760.0,0.35]
[1643984832555,0.19869741,37774.0,37761.0,0.066229]
[1643984832556,0.10061748,37765.0,37761.0,0.066229]
[1643984833301,0.17579684,37770.0,37761.0,0.066229]
[1643984834096,0.066236,37767.0,37763.0,0.04999999]
[1643984834296,0.066236,37767.0,37761.0,0.066229]
[1643984834495,0.42193129,37767.0,37760.0,0.15664473]
[1643984835096,0.066236,37767.0,37760.0,0.15664473]
[1643984835298,0.15,37779.0,37760.0,0.15664473]
[1643984835299,0.264912,37774.0,37766.0,0.04999999]
[1643984835496,0.066223,37771.0,37763.0,0.24702844]
[1643984835697,0.066223,37771.0,37760.0,0.15664473]
[1643984836096,0.066223,37771.0,37761.0,0.31496609]
[1643984836698,0.1455664,37765.0,37760.0,0.08879212]
[1643984836898,0.066228,37765.0,37760.0,0.08879212]
[1643984837146,0.066228,37765.0,37762.0,0.18527613]
[1643984837346,0.066228,37765.0,37760.0,0.08879212]
[1643984838050,0.09564274,37764.0,37758.0,0.04999999]
[1643984838246,0.09564274,37764.0,37756.0,0.2509147]
[1643984838247,0.15210336,37762.0,37756.0,0.66238356]
[1643984838447,0.066234,37763.0,37757.0,0.347303]
[1643984839045,0.066234,37763.0,37756.0,0.51618558]
[1643984839046,0.066234,37763.0,37756.0,0.41618558]
[1643984839247,0.066234,37763.0,37758.0,0.08537324]
[1643984839446,0.21339311,37765.0,37758.0,0.08537324]
[1643984839846,0.21339311,37765.0,37755.0,0.29141651]
[1643984840047,0.26339311,37765.0,37755.0,0.29141651]
[1643984840804,0.046352,37764.0,37755.0,0.29141651]
[1643984840998,0.07673229,37761.0,37756.0,0.10374585]
[1643984841401,0.07673229,37761.0,37757.0,0.132468]
[1643984843697,0.14297429,37761.0,37757.0,0.132468]
[1643984843903,0.14297429,37761.0,37755.0,0.066232]
[1643984844399,0.30662157,37756.0,37755.0,0.066232]
[1643984844654,0.37157258,37761.0,37751.0,0.142486]
[1643984844655,0.24212734,37760.0,37751.0,0.142486]
[1643984844853,0.066253,37755.0,37751.0,0.01]
[1643984845255,0.116253,37755.0,37751.0,0.01]
[1643984845454,0.046352,37754.0,37751.0,0.01]
[1643984845655,0.58435757,37752.0,37751.0,0.01]
[1643984845855,0.79085969,37752.0,37751.0,0.01]
[1643984846755,0.63070957,37752.0,37751.0,0.01]
[1643984847355,0.046352,37752.0,37751.0,0.01]
[1643984847554,0.046352,37752.0,37751.0,0.16481738]
[1643984847756,0.046352,37752.0,37751.0,0.01]
[1643984848413,0.87381338,37752.0,37751.0,0.01]
[1643984848615,0.34007238,37752.0,37751.0,0.01]
[1643984848813,0.046352,37752.0,37751.0,0.01]
[1643984849513,0.046352,37752.0,37751.0,0.55999999]
[1643984849717,0.066245,37759.0,37752.0,0.347303]
[1643984849915,0.24212734,37768.0,37757.0,0.05]
[1643984850116,0.1,37769.0,37757.0,0.05]
[1643984850314,0.1,37769.0,37757.0,0.04999999]
[1643984850516,0.046352,37764.0,37760.0,0.08006448]
[1643984850715,0.046352,37764.0,37756.0,0.04999999]
[1643984850914,0.09818154,37765.0,37757.0,0.06623]
[1643984851319,0.09818154,37765.0,37757.0,0.3217247]
[1643984851516,0.09818154,37765.0,37757.0,0.37172469]
[1643984851819,0.066224,37766.0,37762.0,0.04999999]
[1643984852652,0.046352,37765.0,37762.0,0.04999999]
[1643984853655,0.046352,37765.0,37763.0,0.15531546]
[1643984853852,0.046352,37765.0,37762.0,0.04999999]
[1643984854052,0.046352,37765.0,37757.0,0.30549469]
[1643984854253,0.198712,37763.0,37754.0,0.132457]
[1643984854457,0.198712,37763.0,37754.0,0.04999999]
[1643984854852,0.198712,37763.0,37758.0,0.17996097]
[1643984855052,0.046352,37762.0,37758.0,0.26436564]
[1643984855252,0.046352,37762.0,37755.0,0.2515374]
[1643984855455,0.17883,37762.0,37755.0,0.2515374]
[1643984855653,0.046352,37761.0,37755.0,0.2515374]
[1643984855902,0.066239,37760.0,37755.0,0.2515374]
[1643984856299,0.066239,37760.0,37758.0,0.19982279]
[1643984856502,0.132477,37760.0,37756.0,0.09662943]
[1643984856701,0.132477,37760.0,37755.0,0.3177744]
[1643984858303,0.132477,37760.0,37756.0,0.20113459]
[1643984858506,0.132477,37760.0,37758.0,0.04999999]
[1643984858702,0.066239,37760.0,37758.0,0.04999999]
[1643984859304,0.16019942,37763.0,37758.0,0.04999999]
[1643984859305,0.22643442,37763.0,37758.0,0.04999999]
[1643984859554,0.22643442,37763.0,37756.0,0.20113459]
[1643984859956,0.09396142,37763.0,37756.0,0.20113459]
[1643984860857,0.09396142,37763.0,37757.0,0.132477]
[1643984861261,0.066238,37767.0,37762.0,0.04999999]
[1643984861459,0.066238,37767.0,37761.0,0.05]
[1643984861460,0.22935303,37771.0,37765.0,0.04999999]
[1643984861656,0.06623,37775.0,37759.0,0.29342608]
[1643984861657,0.23826002,37774.0,37759.0,0.29342608]
[1643984861857,0.23826002,37774.0,37762.0,0.04999999]
[1643984862262,0.046352,37769.0,37768.0,0.1970925]
[1643984862459,0.43745408,37773.0,37768.0,0.1970925]
[1643984863060,0.331139,37778.0,37768.0,0.1970925]
[1643984863061,0.198683,37778.0,37770.0,0.04999999]
[1643984863314,0.067321,37779.0,37775.0,0.16780098]
[1643984863315,0.0011,37779.0,37775.0,0.16780098]
[1643984863500,0.0011,37779.0,37774.0,0.08916568]
[1643984863899,0.0011,37779.0,37774.0,0.13916567]
[1643984864100,0.0011,37779.0,37776.0,0.066207]
[1643984864300,0.0011,37779.0,37778.0,0.04999999]
[1643984864503,0.0011,37779.0,37778.0,0.59999999]
[1643984864701,0.0011,37779.0,37778.0,0.94726399]
[1643984864905,0.0011,37779.0,37778.0,0.09999999]
[1643984865103,0.0011,37779.0,37778.0,0.2965336]
[1643984866000,0.0011,37779.0,37778.0,0.19653361]
[1643984866203,0.0011,37779.0,37778.0,0.2965336]
[1643984867459,0.0011,37779.0,37778.0,0.59222607]
[1643984867656,0.0021,37785.0,37780.0,0.347264]
[1643984867959,0.0021,37785.0,37784.0,1.64726399]
[1643984868156,0.0021,37788.0,37784.0,0.49726399]
[1643984868456,0.0021,37788.0,37785.0,0.07371923]
[1643984869256,0.0017813,37787.0,37785.0,0.07371923]
[1643984869456,0.0017813,37787.0,37786.0,0.16437257]
[1643984869858,0.0017813,37787.0,37785.0,0.07371923]
[1643984870903,0.18389257,37787.0,37782.0,0.132354]
[1643984871105,0.18389257,37787.0,37775.0,0.05]
[1643984871411,0.18389257,37787.0,37780.0,0.066205]
[1643984871804,0.55966158,37787.0,37780.0,0.066205]
[1643984872102,0.21446822,37784.0,37780.0,0.066205]
[1643984872708,0.21446822,37784.0,37778.0,0.79395277]
[1643984873307,0.06621208,37783.0,37778.0,0.79395277]
[1643984873510,0.33700141,37782.0,37778.0,0.79395277]
[1643984873707,0.29491779,37780.0,37778.0,0.79395277]
[1643984873906,0.61344033,37780.0,37778.0,0.79395277]
[1643984874105,0.05,37779.0,37778.0,0.79395277]
[1643984874305,2.07436147,37779.0,37778.0,0.79395277]
[1643984874754,2.22436147,37779.0,37778.0,0.79395277]
[1643984875958,0.16728916,37769.0,37768.0,0.24138208]
[1643984876156,0.09794701,37763.0,37760.0,0.29138207]
[1643984876358,0.066227,37768.0,37760.0,0.29138207]
[1643984876559,0.066227,37768.0,37767.0,0.03999999]
[1643984876560,0.076227,37768.0,37767.0,0.03999999]
[1643984876759,0.053,37783.0,37767.0,0.33423875]
[1643984876960,0.198658,37784.0,37769.0,0.03999999]
[1643984876961,0.01,37772.0,37769.0,0.03999999]
[1643984877160,0.066219,37771.0,37769.0,0.03999999]
[1643984877760,0.066219,37771.0,37769.0,0.08999999]
[1643984878402,0.08437278,37772.0,37769.0,0.08999999]
[1643984878598,0.08437278,37772.0,37771.0,0.03999999]
[1643984878599,0.07437278,37772.0,37771.0,0.03999999]
[1643984878801,0.142433,37774.0,37768.0,0.26847198]
[1643984878998,0.142433,37774.0,37768.0,0.1637385]
[1643984879198,0.142433,37774.0,37767.0,0.03999999]
[1643984879399,0.142433,37774.0,37761.0,0.22244599]
[1643984879400,0.01,37769.0,37761.0,0.22244599]
[1643984879602,0.01,37764.0,37757.0,0.03999999]
[1643984879800,0.01,37768.0,37760.0,0.03999999]
[1643984880000,0.01,37765.0,37759.0,0.03999999]
[1643984880199,0.1929198,37763.0,37757.0,0.08999999]
[1643984880410,0.1929198,37763.0,37756.0,0.00023165]
[1643984880411,0.01,37758.0,37756.0,0.00023165]
[1643984880606,0.01,37758.0,37755.0,0.00023165]
[1643984880801,0.01,37758.0,37751.0,0.04999999]
[1643984880802,0.01,37757.0,37751.0,0.01023165]
[1643984881002,0.18940409,37764.0,37751.0,0.01023165]
[1643984881003,0.1325,37760.0,37753.0,1.75]
[1643984881302,0.1325,37760.0,37751.0,0.12300909]
[1643984881303,0.39683038,37774.0,37757.0,0.05]
[1643984881502,0.18182311,37775.0,37757.0,0.09999999]
[1643984881503,0.15,37773.0,37757.0,0.09999999]
[1643984881706,0.066236,37769.0,37757.0,0.09999999]
[1643984881901,0.066236,37769.0,37756.0,0.00023165]
[1643984882152,0.24328753,37761.0,37759.0,0.06623]
[1643984882555,0.24328753,37761.0,37751.0,0.06]
[1643984882556,0.24328753,37761.0,37756.0,0.00023165]
[1643984882757,0.34328753,37761.0,37754.0,0.00023165]
[1643984882954,0.34328753,37761.0,37751.0,0.01]
[1643984883157,0.17227298,37752.0,37751.0,0.01]
[1643984883355,0.31370292,37753.0,37751.0,0.01]
[1643984883655,0.132526,37758.0,37751.0,0.01]
[1643984883656,0.16576866,37752.0,37751.0,0.01]
[1643984884455,0.36102236,37752.0,37751.0,0.01]
[1643984885059,0.65,37751.0,37747.0,0.00023165]
[1643984885259,0.65,37751.0,37746.0,0.00023165]
[1643984885459,0.066266,37750.0,37744.0,0.00023165]
[1643984885662,0.066266,37750.0,37743.0,0.05023164]
[1643984885663,0.066263,37749.0,37743.0,0.05023164]
[1643984885910,0.066263,37749.0,37742.0,0.06649365]
[1643984886110,0.066263,37749.0,37744.0,0.19934054]
[1643984886313,0.99301179,37751.0,37744.0,0.19934054]
[1643984886509,0.066263,37750.0,37744.0,0.19934054]
[1643984886710,0.066264,37748.0,37743.0,0.00023165]
[1643984886909,0.066264,37748.0,37742.0,0.06649365]
[1643984888110,0.65,37751.0,37742.0,0.06649365]
[1643984888111,0.08480377,37744.0,37743.0,0.68381416]
[1643984888312,0.09970856,37745.0,37743.0,0.28404581]
[1643984888509,0.09970856,37745.0,37743.0,0.28381416]
[1643984888708,0.09970856,37745.0,37744.0,0.19170058]
[1643984889651,0.09970856,37745.0,37743.0,0.05023165]
[1643984889852,0.09970856,37745.0,37743.0,0.05]
[1643984890053,0.09970856,37745.0,37742.0,0.06649365]
[1643984891457,0.09970856,37745.0,37742.0,0.00023165]
[1643984891657,0.09970856,37745.0,37741.0,0.16023164]
[1643984892056,0.16598056,37745.0,37741.0,0.16023164]
[1643984892459,0.132541,37749.0,37742.0,0.066265]
[1643984892660,0.09219556,37746.0,37742.0,0.06649665]
[1643984893060,0.14807819,37750.0,37743.0,0.28873776]
[1643984893328,0.0044,37806.0,37748.0,0.04999999]
[1643984893329,0.053,37753.0,37748.0,0.04999999]
[1643984893524,0.053,37758.0,37753.0,0.066247]
[1643984894318,0.1,37760.0,37753.0,0.066247]
[1643984894520,0.24808889,37760.0,37753.0,0.066247]
[1643984894719,0.24808889,37760.0,37753.0,0.056247]
[1643984895120,0.14808889,37760.0,37755.0,0.04999999]
[1643984895521,0.14808889,37760.0,37752.0,0.2094877]
[1643984895722,0.552469,37770.0,37755.0,0.18247499]
[1643984895923,0.42,37770.0,37759.0,0.04999999]
[1643984896131,0.00674429,37775.0,37759.0,0.04999999]
[1643984896321,0.001,37772.0,37759.0,0.04999999]
[1643984896522,0.2915733,37769.0,37758.0,0.05]
[1643984896723,0.382075,37767.0,37758.0,0.05]
[1643984896923,0.382075,37767.0,37761.0,0.066228]
[1643984897554,0.382075,37767.0,37763.0,0.15026464]
[1643984898256,0.382075,37767.0,37761.0,0.066228]
[1643984898257,0.09157798,37764.0,37761.0,0.066228]
[1643984899056,0.09157798,37764.0,37761.0,0.22155376]
[1643984900058,0.09157798,37764.0,37761.0,0.066228]
[1643984901106,0.09157798,37764.0,37761.0,0.21176687]
[1643984901305,0.08657798,37764.0,37761.0,0.21176687]
[1643984901903,0.08657798,37764.0,37761.0,0.066228]
[1643984902105,0.08657798,37764.0,37759.0,0.132454]
[1643984902405,0.31490805,37761.0,37753.0,0.066246]
[1643984902806,0.31490805,37761.0,37750.0,0.04999999]
[1643984903107,0.23739551,37759.0,37749.0,0.00023165]
[1643984903303,0.23739551,37759.0,37747.0,0.04999999]
[1643984903304,0.0929905,37752.0,37747.0,0.04999999]
[1643984903505,0.0929905,37752.0,37751.0,0.09999999]
[1643984903702,0.31924307,37759.0,37748.0,0.04999999]
[1643984903907,0.31924307,37759.0,37750.0,0.19318414]
[1643984904105,0.65212434,37759.0,37750.0,0.25943514]
[1643984904403,0.21434356,37759.0,37750.0,0.30943514]
[1643984904659,0.07585289,37754.0,37750.0,0.29318413]
[1643984904857,0.07585289,37754.0,37750.0,0.05]
[1643984905060,0.07585289,37754.0,37749.0,0.05]
[1643984905258,0.07585289,37754.0,37748.0,0.00023165]
[1643984905459,0.07585289,37754.0,37747.0,0.18272965]
[1643984905858,0.07585289,37754.0,37749.0,0.1850428]
[1643984907662,0.07585289,37754.0,37749.0,0.18527445]
[1643984907962,0.07585289,37754.0,37749.0,0.00023165]
[1643984908164,0.07585289,37754.0,37748.0,0.05023164]
[1643984908407,0.07585289,37754.0,37748.0,0.00023165]
[1643984908607,0.07585289,37754.0,37747.0,0.18272965]
[1643984908809,0.07585289,37754.0,37751.0,0.04999999]
[1643984909011,0.07585289,37754.0,37748.0,0.17546536]
[1643984909206,0.07585289,37754.0,37750.0,0.05]
[1643984909406,0.07585289,37754.0,37748.0,0.00023165]
[1643984909605,0.07585289,37754.0,37747.0,0.00023165]
[1643984909807,0.07632006,37748.0,37746.0,0.00023165]
[1643984910008,0.07632006,37748.0,37745.0,0.13273265]
[1643984910209,0.07632006,37748.0,37745.0,0.00023165]
[1643984910409,0.07632006,37748.0,37745.0,0.066258]
[1643984910606,0.07632006,37748.0,37745.0,0.06648965]
[1643984911410,0.06626,37751.0,37745.0,0.06648965]
[1643984911611,0.132514,37756.0,37745.0,0.06648965]
[1643984912251,0.18737977,37753.0,37745.0,0.06648965]
[1643984912653,0.066259,37751.0,37745.0,0.06648965]
[1643984913053,0.23203662,37752.0,37745.0,0.06648965]
[1643984913654,0.18737977,37753.0,37745.0,0.06648965]
[1643984913853,0.08474913,37749.0,37745.0,0.06648965]
[1643984914259,0.22777718,37748.0,37745.0,0.06648965]
[1643984914456,0.22777718,37748.0,37745.0,0.00023165]
[1643984914656,0.08474913,37749.0,37742.0,0.05023165]
[1643984914854,0.2376582,37748.0,37742.0,0.00023165]
[1643984915056,0.2376582,37748.0,37741.0,0.01]
[1643984915057,0.3039302,37748.0,37741.0,0.01]
[1643984915255,0.14957784,37743.0,37741.0,0.01]
[1643984917301,0.066274,37743.0,37741.0,0.10999999]
[1643984917505,0.11926962,37752.0,37741.0,0.10999999]
[1643984917506,0.24290882,37751.0,37742.0,0.347264]
[1643984917703,0.24290882,37754.0,37741.0,0.01]
[1643984917904,0.24290882,37754.0,37744.0,0.04999999]
[1643984918203,0.24290882,37759.0,37744.0,0.04999999]
[1643984918402,0.08205521,37748.0,37744.0,0.04999999]
[1643984918603,0.08205521,37748.0,37744.0,0.09999999]
[1643984918804,0.08205521,37748.0,37745.0,0.06626]
[1643984919003,0.08205521,37748.0,37745.0,0.06649165]
[1643984919670,0.2439884,37754.0,37747.0,0.04999999]
[1643984919869,0.2439884,37754.0,37747.0,0.11625299]
[1643984920267,0.2439884,37754.0,37747.0,0.11648464]
[1643984920670,0.08858049,37752.0,37747.0,0.11648464]
[1643984921468,0.08858049,37752.0,37747.0,0.06648465]
[1643984921670,0.08858049,37752.0,37747.0,0.00023165]
[1643984921870,0.08858049,37752.0,37746.0,0.00023165]
[1643984922173,0.08858049,37752.0,37748.0,0.04999999]
[1643984922569,0.32481244,37754.0,37748.0,0.05023164]
[1643984922771,0.32481244,37754.0,37748.0,0.04999999]
[1643984923607,0.32481244,37754.0,37747.0,0.11648165]
[1643984923809,0.32481244,37754.0,37747.0,0.06625]
[1643984924006,0.32481244,37754.0,37745.0,0.00023165]
[1643984924207,0.32481244,37754.0,37745.0,0.04999999]
[1643984924410,0.32481244,37754.0,37745.0,0.05023164]
[1643984924608,0.39106844,37754.0,37745.0,0.05023164]
[1643984924810,0.2013249,37753.0,37745.0,0.11648664]
[1643984925611,0.39106844,37754.0,37745.0,0.00023165]
[1643984925811,0.32481244,37754.0,37745.0,0.11648664]
[1643984926210,0.32481244,37754.0,37745.0,0.05023164]
[1643984926414,0.2333973,37753.0,37745.0,0.00023165]
[1643984926613,0.08058583,37746.0,37744.0,0.17443757]
[1643984927253,0.08058583,37746.0,37744.0,0.22443757]
[1643984927853,0.16138779,37752.0,37744.0,0.17443757]
[1643984928255,0.066257,37753.0,37745.0,0.04999999]
[1643984928456,0.2439884,37754.0,37748.0,0.04999999]
[1643984928657,0.2439884,37754.0,37750.0,0.04999999]
[1643984928855,0.09617849,37751.0,37750.0,0.04999999]
[1643984929055,0.09617849,37751.0,37747.0,0.00023165]
[1643984929255,0.09617849,37751.0,37746.0,0.33344393]
[1643984929456,0.2439884,37754.0,37753.0,0.05]
[1643984929657,0.2439884,37754.0,37753.0,0.09999999]
[1643984930060,0.25496301,37762.0,37753.0,0.09999999]
[1643984930256,0.31298477,37761.0,37751.0,0.04999999]
[1643984930457,0.08440418,37756.0,37751.0,0.04999999]
[1643984930657,0.08440418,37756.0,37751.0,0.09999999]
[1643984930906,0.08440418,37756.0,37750.0,0.30165583]
[1643984931104,0.54209593,37761.0,37752.0,0.25671881]
[1643984931306,0.24398285,37762.0,37753.0,0.066238]
[1643984931506,0.24398285,37762.0,37758.0,0.05]
[1643984931707,0.39678319,37766.0,37756.0,0.04999999]
[1643984931904,0.1,37766.0,37760.0,0.1922143]
[1643984932406,0.09021379,37764.0,37758.0,0.09999999]
[1643984933105,0.09021379,37764.0,37759.0,0.04999999]
[1643984933504,0.09021379,37764.0,37761.0,0.09999999]
[1643984933906,0.09021379,37764.0,37761.0,0.04999999]
[1643984934107,0.09021379,37764.0,37761.0,0.11622399]
[1643984934305,0.09021379,37764.0,37761.0,0.066224]
[1643984935650,0.09021379,37764.0,37751.0,0.29342752]
[1643984935851,0.09021379,37764.0,37755.0,0.05]
[1643984936049,0.09021379,37764.0,37754.0,0.18925305]
[1643984936251,0.09021379,37764.0,37754.0,0.23925305]
[1643984936458,0.09021379,37764.0,37751.0,0.05]
[1643984936459,0.066243,37758.0,37751.0,0.05]
[1643984936654,0.198766,37758.0,37747.0,0.00023165]
[1643984936852,0.198766,37758.0,37744.0,0.2425809]
[1643984936853,0.198766,37758.0,37744.0,0.00023165]
[1643984937052,0.198766,37758.0,37744.0,0.2425809]
[1643984937053,0.132523,37758.0,37744.0,0.2425809]
[1643984937253,0.76411586,37758.0,37744.0,0.24281255]
[1643984937453,0.09698145,37747.0,37744.0,0.00023165]
[1643984937656,0.34097427,37747.0,37742.0,0.00023165]
[1643984937857,0.34097427,37747.0,37741.0,0.01]
[1643984937858,0.44097427,37747.0,37741.0,0.01]
[1643984938052,0.053,37746.0,37741.0,0.01]
[1643984938503,0.27311957,37743.0,37741.0,0.01]
[1643984938704,0.916282,37742.0,37741.0,0.01]
[1643984939704,1.14909638,37742.0,37741.0,0.01]
[1643984939902,0.29909638,37742.0,37741.0,0.01]
[1643984940103,0.066282,37742.0,37741.0,0.01]
[1643984940506,0.666282,37742.0,37741.0,0.01]
[1643984941303,0.89666609,37742.0,37741.0,0.01]
[1643984941503,1.416282,37742.0,37741.0,0.01]
[1643984941702,1.68238032,37742.0,37741.0,0.01]
[1643984942456,0.666282,37742.0,37741.0,0.01]
[1643984942656,0.666282,37742.0,37737.0,0.00023165]
[1643984942657,1.4,37741.0,37737.0,0.00023165]
[1643984942862,1.4,37741.0,37731.0,0.01]
[1643984942863,0.066288,37739.0,37736.0,0.00023165]
[1643984943061,0.119288,37739.0,37732.0,0.00023165]
[1643984943257,0.2425809,37740.0,37731.0,0.01]
[1643984943456,0.053,37739.0,37731.0,0.01]
[1643984943660,0.53542594,37737.0,37731.0,0.01]
[1643984943857,0.066299,37736.0,37731.0,0.01]
[1643984944957,0.28323513,37735.0,37731.0,0.01]
[1643984945158,0.52360534,37735.0,37731.0,0.01]
[1643984945358,0.25192,37734.0,37731.0,0.007]
[1643984945562,0.24458163,37733.0,37731.0,0.007]
[1643984945806,0.516304,37732.0,37731.0,0.007]
[1643984946001,0.83449014,37732.0,37731.0,0.007]
[1643984946401,1.48449014,37732.0,37727.0,0.00023165]
[1643984946602,0.132623,37730.0,37722.0,0.00023165]
[1643984946805,0.066306,37727.0,37721.0,0.01]
[1643984947002,0.15835915,37726.0,37722.0,0.00023165]
[1643984947202,0.4091713,37730.0,37721.0,0.01]
[1643984947203,0.230158,37725.0,37721.0,0.01023165]
[1643984947404,0.132623,37730.0,37723.0,0.04999999]
[1643984947606,0.35,37731.0,37725.0,0.04999999]
[1643984948209,0.35,37731.0,37726.0,0.16378695]
[1643984948407,0.31126648,37733.0,37726.0,0.2965996]
[1643984948605,0.24390759,37735.0,37727.0,1.95]
[1643984948807,0.1,37744.0,37734.0,0.04999999]
[1643984949009,0.1,37746.0,37743.0,0.04999999]
[1643984949209,0.1,37746.0,37745.0,0.05]
[1643984949411,0.39678319,37758.0,37745.0,2.29354367]
[1643984949664,0.39678319,37760.0,37756.0,0.3570044]
[1643984949862,0.39678319,37763.0,37759.0,0.99999999]
[1643984950067,0.39678319,37763.0,37757.0,1.49354368]
[1643984950068,0.18185007,37766.0,37762.0,0.09999999]
[1643984950364,0.66583045,37782.0,37768.0,0.95]
[1643984950561,0.38212265,37782.0,37772.0,0.05]
[1643984950867,0.37489722,37782.0,37778.0,0.09842554]
[1643984951063,1.48834457,37779.0,37778.0,0.08858299]
[1643984951260,1.48834457,37779.0,37767.0,0.1]
[1643984951460,0.16063481,37778.0,37764.0,0.05]
[1643984951661,0.16063481,37778.0,37762.0,0.08654]
[1643984951662,0.91533548,37777.0,37762.0,0.08654]
[1643984951860,0.38358278,37766.0,37762.0,0.08654]
[1643984952060,0.06624,37765.0,37762.0,0.08654]
[1643984952258,0.06624,37765.0,37763.0,0.17417285]
[1643984952658,0.06624,37765.0,37762.0,0.13654]
[1643984952858,0.06624,37765.0,37762.0,0.08654]
[1643984953065,0.24354368,37764.0,37762.0,0.08654]
[1643984953313,1.65,37763.0,37753.0,2.70405127]
[1643984953515,1.65,37763.0,37750.0,0.05]
[1643984953516,0.19655864,37756.0,37752.0,0.1586052]
[1643984953708,0.19655864,37756.0,37744.0,0.05]
[1643984953709,0.066264,37754.0,37744.0,0.05]
[1643984954007,0.50819316,37756.0,37751.0,0.04999999]
[1643984954407,0.50819316,37756.0,37749.0,0.34450895]
[1643984954712,0.50819316,37756.0,37747.0,0.05]
[1643984954909,0.50819316,37756.0,37744.0,0.00023466]
[1643984954910,0.916249,37755.0,37744.0,0.00023466]
[1643984955108,0.916249,37755.0,37742.0,0.07733938]
[1643984955109,0.04999999,37750.0,37743.0,0.29110294]
[1643984955307,1.09354368,37755.0,37743.0,0.29086828]
[1643984955508,0.50819316,37756.0,37743.0,0.35735194]
[1643984955706,0.28350798,37760.0,37743.0,0.35735194]
[1643984955707,0.22680639,37760.0,37743.0,0.35735194]
[1643984955907,0.04999999,37755.0,37746.0,2.48669163]
[1643984956111,0.09510014,37754.0,37746.0,2.53669163]
[1643984956308,0.04999999,37752.0,37746.0,2.58669163]
[1643984956509,0.04999999,37752.0,37746.0,2.53669163]
[1643984956708,0.16348366,37750.0,37746.0,0.25049504]
[1643984956907,0.16348366,37750.0,37744.0,0.00023466]
[1643984957158,0.066266,37750.0,37743.0,0.39110294]
[1643984957758,0.066266,37750.0,37745.0,0.05]
[1643984957957,0.04999999,37749.0,37745.0,0.05]
[1643984958262,0.04999999,37746.0,37744.0,0.00023466]
[1643984958561,0.55001047,37743.0,37729.0,0.5285]
[1643984958763,0.04999999,37740.0,37729.0,0.5285]
[1643984959059,0.04999999,37740.0,37737.0,0.2928501]
[1643984959257,0.04999999,37738.0,37737.0,0.2928501]
[1643984959457,0.04999999,37740.0,37737.0,0.2928501]
[1643984959856,0.04999999,37740.0,37737.0,0.39447724]
[1643984960061,0.02830694,37742.0,37737.0,0.39447724]
[1643984960908,0.02830694,37742.0,37737.0,0.49447724]
[1643984961107,0.04999999,37740.0,37737.0,0.3928501]
[1643984961508,0.02830694,37742.0,37737.0,0.3928501]
[1643984961807,0.02830694,37742.0,37741.0,0.19630071]
[1643984962007,0.02830694,37742.0,37741.0,0.29630071]
[1643984962308,0.43211239,37751.0,37741.0,0.94630071]
[1643984962309,0.066261,37750.0,37741.0,0.94630071]
[1643984962506,0.07835626,37750.0,37741.0,0.94630071]
[1643984962711,0.02835627,37750.0,37747.0,0.25506001]
[1643984962908,0.02835627,37750.0,37747.0,0.066247]
[1643984963110,0.02835627,37750.0,37747.0,0.116247]
[1643984963308,0.02835627,37750.0,37748.0,0.05]
[1643984963509,0.02835627,37750.0,37741.0,0.65]
[1643984963710,0.19332943,37747.0,37743.0,0.22660915]
[1643984964108,0.19332943,37747.0,37743.0,0.05]
[1643984964569,0.02835627,37750.0,37742.0,0.49580112]
[1643984964770,0.10116582,37751.0,37742.0,0.6000296]
[1643984965069,0.04999999,37745.0,37741.0,0.05]
[1643984965270,0.32552479,37746.0,37732.0,0.132535]
[1643984965271,0.04999999,37742.0,37732.0,0.132535]
[1643984965471,0.19617646,37744.0,37738.0,0.2374428]
[1643984965670,0.19617646,37744.0,37739.0,0.09323281]
[1643984965873,0.0737573,37745.0,37738.0,0.066265]
[1643984966070,0.15116581,37751.0,37741.0,0.30750836]
[1643984966274,0.12276999,37751.0,37742.0,0.24461175]
[1643984966476,0.07277,37751.0,37742.0,0.13249396]
[1643984966670,0.35855466,37750.0,37745.0,0.066248]
[1643984966971,0.04999999,37749.0,37745.0,0.066248]
[1643984967171,0.35855466,37750.0,37745.0,0.066248]
[1643984967372,0.0901374,37748.0,37745.0,0.066248]
[1643984967571,0.04999999,37747.0,37743.0,0.182496]
[1643984967774,0.0901374,37748.0,37743.0,0.132496]
[1643984968071,0.22067945,37745.0,37743.0,0.132496]
[1643984968312,0.22067945,37745.0,37735.0,0.05]
[1643984968504,0.04999999,37742.0,37734.0,0.27062127]
[1643984968704,0.08193859,37740.0,37736.0,0.132536]
[1643984968905,0.04999999,37739.0,37736.0,0.132536]
[1643984969113,0.13193858,37740.0,37736.0,0.132536]
[1643984969506,0.5330481,37745.0,37744.0,0.33167145]
[1643984969706,0.58304809,37745.0,37744.0,0.33167145]
[1643984970108,0.68304809,37745.0,37744.0,0.33167145]
[1643984970408,0.58304809,37745.0,37744.0,0.33167145]
[1643984970608,0.67142051,37745.0,37744.0,0.33167145]
[1643984972064,0.41236863,37745.0,37744.0,0.33167145]
[1643984972265,1.11381916,37770.0,37745.0,1.75]
[1643984972468,1.11381916,37770.0,37744.0,0.33167145]
[1643984972469,0.00608993,37776.0,37765.0,0.09999998]
[1643984972668,0.00608993,37776.0,37752.0,1.95]
[1643984972669,0.0022,37784.0,37777.0,0.15]
[1643984972866,0.0032,37790.0,37770.0,1.95]
[1643984972867,0.51224797,37791.0,37784.0,1.95]
[1643984973068,0.03920343,37810.0,37792.0,2.1]
[1643984973276,0.4,37811.0,37786.0,0.3198142]
[1643984973283,0.4,37811.0,37793.0,2.24931106]
[1643984973284,0.18467315,37795.0,37793.0,2.24931106]